[Event "Titled Tuesday Blitz April 25 Late 2023"]
[White "Rozen, Eytan"]
[Black "Makaraci, Tunahan"]
[WhiteFideId "2816750"]
[BlackFideId "6356559"]
[WhiteElo "2451"]
[BlackElo "2160"]
[Result "1-0"]
[Round "08"]
[TimeControl "180+2"]
[Date "2023.04.25"]
[WhiteClock "0:00:03"]
[BlackClock "0:00:04"]

1. d4 {[%clk 0:03:00]}  d5 {[%clk 0:02:59]} 2. c4 {[%clk 0:03:01]}  e6 {[%clk 0:03:00]} 3. Nc3 {[%clk 0:03:01]}  c5 {[%clk 0:03:00]} 4. Nf3 {[%clk 0:02:51]}  cxd4 {[%clk 0:03:00]} 5. Nxd4 {[%clk 0:02:52]}  e5 {[%clk 0:02:59]} 6. Ndb5 {[%clk 0:02:52]}  a6 {[%clk 0:02:56]} 7. Qa4 {[%clk 0:02:49]}  Bd7 {[%clk 0:02:56]} 8. e4 {[%clk 0:02:37]}  dxc4 {[%clk 0:02:37]} 9. Bxc4 {[%clk 0:02:20]}  axb5 {[%clk 0:02:35]} 10. Bxf7+ {[%clk 0:02:03]}  Kxf7 {[%clk 0:02:35]} 11. Qxa8 {[%clk 0:02:04]}  Bc6 {[%clk 0:02:27]} 12. O-O {[%clk 0:02:00]}  Bc5 {[%clk 0:02:22]} 13. Be3 {[%clk 0:01:37]}  Bxe3 {[%clk 0:02:20]} 14. fxe3+ {[%clk 0:01:38]}  Nf6 {[%clk 0:02:20]} 15. Nd5 {[%clk 0:01:36]}  Bxd5 {[%clk 0:02:13]} 16. exd5 {[%clk 0:01:37]}  Qxd5 {[%clk 0:02:12]} 17. Rac1 {[%clk 0:01:20]}  Re8 {[%clk 0:01:25]} 18. Rc7+ {[%clk 0:00:56]}  Nd7 {[%clk 0:01:23]} 19. Qxb7 {[%clk 0:00:56]}  Qxb7 {[%clk 0:01:15]} 20. Rxb7 {[%clk 0:00:57]}  Ke6 {[%clk 0:01:12]} 21. Rxb5 {[%clk 0:00:56]}  Rc8 {[%clk 0:01:12]} 22. a4 {[%clk 0:00:54]}  Ne4 {[%clk 0:01:12]} 23. a5 {[%clk 0:00:51]}  Ndc5 {[%clk 0:01:10]} 24. Rc1 {[%clk 0:00:46]}  Rd8 {[%clk 0:00:48]} 25. b4 {[%clk 0:00:34]}  Nd3 {[%clk 0:00:41]} 26. Rb6+ {[%clk 0:00:33]}  Kd5 {[%clk 0:00:33]} 27. Rc7 {[%clk 0:00:28]}  Nd2 {[%clk 0:00:19]} 28. a6 {[%clk 0:00:20]}  Rf8 {[%clk 0:00:17]} 29. h4 {[%clk 0:00:19]}  Rf1+ {[%clk 0:00:14]} 30. Kh2 {[%clk 0:00:19]}  Ne4 {[%clk 0:00:09]} 31. Rd7+ {[%clk 0:00:15]}  Kc4 {[%clk 0:00:09]} 32. Rc6+ {[%clk 0:00:14]}  Kb5 {[%clk 0:00:10]} 33. a7 {[%clk 0:00:07]}  Ndf2 {[%clk 0:00:08]} 34. Rc5+ {[%clk 0:00:04]}  Kxb4 {[%clk 0:00:06]} 35. g4 {[%clk 0:00:03]}  Rh1+ {[%clk 0:00:05]} 36. Kg2 {[%clk 0:00:03]}  Ra1 {[%clk 0:00:05]} 37. Rc8 {[%clk 0:00:01]}  Nxg4 {[%clk 0:00:05]} 38. Rb8+ {[%clk 0:00:02]}  Kc4 {[%clk 0:00:05]} 39. Rc7+ {[%clk 0:00:02]}  Kd3 {[%clk 0:00:04]} 40. a8=Q {[%clk 0:00:03]}  Rxa8 {[%clk 0:00:04]} 41. Rd7+ {[%clk 0:00:03]}  Kxe3 {[%clk 0:00:03]} 42. Rxa8 {[%clk 0:00:04]}  Kf4 {[%clk 0:00:04]} 43. Ra4 {[%clk 0:00:03]}  Ne3+ {[%clk 0:00:03]} 44. Kh2 {[%clk 0:00:04]}  Nf5 {[%clk 0:00:03]} 45. Rf7 {[%clk 0:00:04]}  g6 {[%clk 0:00:02]} 46. Rxh7 {[%clk 0:00:04]}  Nd4 {[%clk 0:00:01]} 47. Rf7+ {[%clk 0:00:04]}  Nf5 {[%clk 0:00:02]} 48. Rd7 {[%clk 0:00:04]}  Nd4 {[%clk 0:00:02]} 49. Re7 {[%clk 0:00:03]}  Nf5 {[%clk 0:00:02]} 50. Rc7 {[%clk 0:00:03]}  Nd4 {[%clk 0:00:02]} 51. Ra6 {[%clk 0:00:03]}  Nf5 {[%clk 0:00:01]} 52. Rxg6 {[%clk 0:00:03]}  Nd2 {[%clk 0:00:01]} 53. Rg8 {[%clk 0:00:03]}  Nf3+ {[%clk 0:00:02]} 54. Kh3 {[%clk 0:00:03]}  e4 {[%clk 0:00:02]} 55. Ra7 {[%clk 0:00:02]}  N3d4 {[%clk 0:00:03]} 56. Ra3 {[%clk 0:00:02]}  e3 {[%clk 0:00:03]} 57. Re8 {[%clk 0:00:03]}  e2 {[%clk 0:00:02]} 58. Kg2 {[%clk 0:00:03]}  Ne3+ {[%clk 0:00:02]} 59. Kf2 {[%clk 0:00:03]}  Nec2 {[%clk 0:00:01]} 60. Rc3 {[%clk 0:00:02]}  e1=Q+ {[%clk 0:00:02]} 61. Rxe1 {[%clk 0:00:02]}  Nxe1 {[%clk 0:00:03]} 62. Kxe1 {[%clk 0:00:03]}  Nf3+ {[%clk 0:00:03]} 63. Rxf3+ {[%clk 0:00:03]}  Kg4 {[%clk 0:00:04]} 64. Rh3 {[%clk 0:00:03]} 1-0


[Site "https://www.chess.com"]

[Event "Titled Tuesday Blitz April 25 Late 2023"]
[White "Goltsev, Dmitry"]
[Black "Ismagilov, Damir"]
[WhiteFideId "24176710"]
[BlackFideId "34199982"]
[WhiteElo "2336"]
[BlackElo "2078"]
[Result "0-1"]
[Round "08"]
[TimeControl "180+2"]
[Date "2023.04.25"]
[WhiteClock "0:00:15"]
[BlackClock "0:00:07"]

1. e4 {[%clk 0:02:59]}  e6 {[%clk 0:02:58]} 2. d4 {[%clk 0:02:59]}  d5 {[%clk 0:02:58]} 3. exd5 {[%clk 0:03:00]}  exd5 {[%clk 0:02:58]} 4. Nf3 {[%clk 0:03:00]}  Bd6 {[%clk 0:02:58]} 5. c4 {[%clk 0:03:01]}  Nf6 {[%clk 0:02:57]} 6. Nc3 {[%clk 0:02:59]}  O-O {[%clk 0:02:51]} 7. Be2 {[%clk 0:02:49]}  dxc4 {[%clk 0:02:48]} 8. Bxc4 {[%clk 0:02:50]}  Bg4 {[%clk 0:02:43]} 9. O-O {[%clk 0:02:49]}  Nbd7 {[%clk 0:02:43]} 10. Bg5 {[%clk 0:02:47]}  h6 {[%clk 0:02:41]} 11. Bh4 {[%clk 0:02:46]}  c6 {[%clk 0:02:42]} 12. Qd3 {[%clk 0:02:46]}  Qa5 {[%clk 0:02:38]} 13. h3 {[%clk 0:02:45]}  Bf5 {[%clk 0:02:37]} 14. Qd2 {[%clk 0:02:37]}  Rfe8 {[%clk 0:02:36]} 15. Rfe1 {[%clk 0:02:32]}  Qc7 {[%clk 0:02:16]} 16. Rxe8+ {[%clk 0:02:00]}  Rxe8 {[%clk 0:02:15]} 17. Re1 {[%clk 0:02:00]}  Rxe1+ {[%clk 0:02:14]} 18. Qxe1 {[%clk 0:02:01]}  g5 {[%clk 0:02:12]} 19. Bxg5 {[%clk 0:01:59]}  hxg5 {[%clk 0:02:11]} 20. Nxg5 {[%clk 0:02:00]}  Bg6 {[%clk 0:02:11]} 21. g3 {[%clk 0:01:48]}  Nb6 {[%clk 0:02:08]} 22. Bb3 {[%clk 0:01:46]}  Qe7 {[%clk 0:02:07]} 23. Qd2 {[%clk 0:01:40]}  Nbd5 {[%clk 0:02:00]} 24. Nf3 {[%clk 0:01:37]}  Nxc3 {[%clk 0:01:56]} 25. bxc3 {[%clk 0:01:36]}  Kg7 {[%clk 0:01:43]} 26. Nh4 {[%clk 0:01:31]}  Qe4 {[%clk 0:01:37]} 27. Qg5 {[%clk 0:01:20]}  Be7 {[%clk 0:00:55]} 28. Qe5 {[%clk 0:00:04]}  Qxe5 {[%clk 0:00:44]} 29. dxe5 {[%clk 0:00:05]}  Nd7 {[%clk 0:00:44]} 30. Nxg6 {[%clk 0:00:05]}  fxg6 {[%clk 0:00:39]} 31. f4 {[%clk 0:00:06]}  Nc5 {[%clk 0:00:37]} 32. Bc2 {[%clk 0:00:06]}  b5 {[%clk 0:00:36]} 33. g4 {[%clk 0:00:04]}  Bh4 {[%clk 0:00:21]} 34. f5 {[%clk 0:00:04]}  gxf5 {[%clk 0:00:20]} 35. gxf5 {[%clk 0:00:05]}  Nd7 {[%clk 0:00:20]} 36. e6 {[%clk 0:00:05]}  Ne5 {[%clk 0:00:20]} 37. Be4 {[%clk 0:00:04]}  Kf6 {[%clk 0:00:20]} 38. Kf1 {[%clk 0:00:04]}  Bg5 {[%clk 0:00:19]} 39. Ke2 {[%clk 0:00:03]}  a5 {[%clk 0:00:20]} 40. Kf2 {[%clk 0:00:03]}  Bd2 {[%clk 0:00:20]} 41. h4 {[%clk 0:00:03]}  Bxc3 {[%clk 0:00:20]} 42. Ke3 {[%clk 0:00:03]}  Bb2 {[%clk 0:00:19]} 43. h5 {[%clk 0:00:03]}  c5 {[%clk 0:00:18]} 44. Kd2 {[%clk 0:00:02]}  Ng4 {[%clk 0:00:15]} 45. Kc2 {[%clk 0:00:02]}  Be5 {[%clk 0:00:14]} 46. Bc6 {[%clk 0:00:02]}  b4 {[%clk 0:00:14]} 47. Kb3 {[%clk 0:00:03]}  Ne3 {[%clk 0:00:14]} 48. h6 {[%clk 0:00:02]}  c4+ {[%clk 0:00:14]} 49. Ka4 {[%clk 0:00:02]}  Ke7 {[%clk 0:00:13]} 50. Be4 {[%clk 0:00:02]}  c3 {[%clk 0:00:13]} 51. Kxa5 {[%clk 0:00:03]}  c2 {[%clk 0:00:13]} 52. Bxc2 {[%clk 0:00:03]}  Nxc2 {[%clk 0:00:13]} 53. h7 {[%clk 0:00:04]}  Nd4 {[%clk 0:00:08]} 54. Kxb4 {[%clk 0:00:04]}  Nxf5 {[%clk 0:00:09]} 55. a4 {[%clk 0:00:04]}  Kxe6 {[%clk 0:00:09]} 56. Kb5 {[%clk 0:00:05]}  Kd7 {[%clk 0:00:08]} 57. a5 {[%clk 0:00:05]}  Kc7 {[%clk 0:00:09]} 58. Kc5 {[%clk 0:00:05]}  Bh8 {[%clk 0:00:08]} 59. Kd5 {[%clk 0:00:05]}  Nh4 {[%clk 0:00:07]} 60. Ke6 {[%clk 0:00:05]}  Bc3 {[%clk 0:00:04]} 61. Kf7 {[%clk 0:00:05]}  Kb7 {[%clk 0:00:04]} 62. Kg8 {[%clk 0:00:06]}  Ng6 {[%clk 0:00:04]} 63. Kf7 {[%clk 0:00:06]}  Nh8+ {[%clk 0:00:04]} 64. Ke6 {[%clk 0:00:05]}  Ka6 {[%clk 0:00:05]} 65. Kd5 {[%clk 0:00:05]}  Kxa5 {[%clk 0:00:05]} 66. Kc4 {[%clk 0:00:06]}  Ba1 {[%clk 0:00:05]} 67. Kd5 {[%clk 0:00:07]}  Kb5 {[%clk 0:00:05]} 68. Ke6 {[%clk 0:00:08]}  Kc6 {[%clk 0:00:06]} 69. Kf5 {[%clk 0:00:08]}  Kd7 {[%clk 0:00:06]} 70. Ke4 {[%clk 0:00:09]}  Ke7 {[%clk 0:00:06]} 71. Kd5 {[%clk 0:00:10]}  Kf7 {[%clk 0:00:07]} 72. Kc6 {[%clk 0:00:11]}  Kg7 {[%clk 0:00:08]} 73. Kd5 {[%clk 0:00:12]}  Kxh7 {[%clk 0:00:08]} 74. Ke4 {[%clk 0:00:13]}  Kg6 {[%clk 0:00:09]} 75. Kd5 {[%clk 0:00:13]}  Bg7 {[%clk 0:00:10]} 76. Ke6 {[%clk 0:00:13]}  Nf7 {[%clk 0:00:11]} 77. Kd5 {[%clk 0:00:13]}  Kf5 {[%clk 0:00:11]} 78. Kc4 {[%clk 0:00:13]}  Ke4 {[%clk 0:00:12]} 79. Kc5 {[%clk 0:00:13]}  Ne5 {[%clk 0:00:12]} 80. Kd6 {[%clk 0:00:13]}  Bf8+ {[%clk 0:00:13]} 81. Kc7 {[%clk 0:00:13]}  Kd5 {[%clk 0:00:13]} 82. Kb6 {[%clk 0:00:13]}  Ba3 {[%clk 0:00:12]} 83. Kc7 {[%clk 0:00:12]}  Bc5 {[%clk 0:00:11]} 84. Kb7 {[%clk 0:00:12]}  Kd6 {[%clk 0:00:11]} 85. Kc8 {[%clk 0:00:12]}  Kc6 {[%clk 0:00:11]} 86. Kb8 {[%clk 0:00:13]}  Bb6 {[%clk 0:00:10]} 87. Ka8 {[%clk 0:00:13]}  Ba5 {[%clk 0:00:09]} 88. Ka7 {[%clk 0:00:13]}  Nf7 {[%clk 0:00:09]} 89. Ka6 {[%clk 0:00:12]}  Bc3 {[%clk 0:00:09]} 90. Ka7 {[%clk 0:00:13]}  Nd6 {[%clk 0:00:09]} 91. Ka8 {[%clk 0:00:14]}  Nb5 {[%clk 0:00:09]} 92. Kb8 {[%clk 0:00:14]}  Bd4 {[%clk 0:00:09]} 93. Ka8 {[%clk 0:00:15]}  Nc7+ {[%clk 0:00:10]} 94. Kb8 {[%clk 0:00:15]}  Bc5 {[%clk 0:00:10]} 95. Kc8 {[%clk 0:00:15]}  Ba7 {[%clk 0:00:11]} 96. Kd8 {[%clk 0:00:15]}  Nd5 {[%clk 0:00:12]} 97. Ke8 {[%clk 0:00:15]}  Kd6 {[%clk 0:00:10]} 98. Kf7 {[%clk 0:00:15]}  Ne7 {[%clk 0:00:11]} 99. Kf6 {[%clk 0:00:15]}  Be3 {[%clk 0:00:11]} 100. Kf7 {[%clk 0:00:16]}  Bg5 {[%clk 0:00:11]} 101. Ke8 {[%clk 0:00:13]}  Ke6 {[%clk 0:00:11]} 102. Kd8 {[%clk 0:00:13]}  Bf4 {[%clk 0:00:12]} 103. Ke8 {[%clk 0:00:14]}  Nf5 {[%clk 0:00:12]} 104. Kd8 {[%clk 0:00:14]}  Ne7 {[%clk 0:00:11]} 105. Ke8 {[%clk 0:00:14]}  Bc7 {[%clk 0:00:09]} 106. Kf8 {[%clk 0:00:14]}  Nf5 {[%clk 0:00:07]} 107. Ke8 {[%clk 0:00:13]}  Ng7+ {[%clk 0:00:07]} 108. Kf8 {[%clk 0:00:14]}  Kf6 {[%clk 0:00:08]} 109. Kg8 {[%clk 0:00:14]}  Kg6 {[%clk 0:00:08]} 110. Kh8 {[%clk 0:00:13]}  Bd6 {[%clk 0:00:08]} 111. Kg8 {[%clk 0:00:14]}  Nf5 {[%clk 0:00:05]} 112. Kh8 {[%clk 0:00:14]}  Bc5 {[%clk 0:00:05]} 113. Kg8 {[%clk 0:00:14]}  Nh6+ {[%clk 0:00:06]} 114. Kh8 {[%clk 0:00:15]}  Bd4# {[%clk 0:00:07]} 0-1


[Site "https://www.chess.com"]

[Event "Titled Tuesday Blitz April 25 Late 2023"]
[White "Weetik, Vjacheslav"]
[Black "Mortazavi, Ali"]
[WhiteFideId "4153472"]
[BlackFideId "401323"]
[WhiteElo "2469"]
[BlackElo "2339"]
[Result "1-0"]
[Round "08"]
[TimeControl "180+2"]
[Date "2023.04.25"]
[WhiteClock "0:00:02"]
[BlackClock "0:00:02"]

1. d4 {[%clk 0:02:58]}  Nf6 {[%clk 0:02:59]} 2. Bf4 {[%clk 0:02:57]}  g6 {[%clk 0:02:53]} 3. Nf3 {[%clk 0:02:57]}  Bg7 {[%clk 0:02:54]} 4. e3 {[%clk 0:02:53]}  O-O {[%clk 0:02:55]} 5. h3 {[%clk 0:02:52]}  d6 {[%clk 0:02:55]} 6. Be2 {[%clk 0:02:49]}  c5 {[%clk 0:02:55]} 7. Nbd2 {[%clk 0:02:47]}  Be6 {[%clk 0:02:55]} 8. dxc5 {[%clk 0:02:30]}  dxc5 {[%clk 0:02:55]} 9. c3 {[%clk 0:02:31]}  Nc6 {[%clk 0:02:28]} 10. Qc2 {[%clk 0:02:22]}  Qc8 {[%clk 0:01:53]} 11. O-O {[%clk 0:02:13]}  h6 {[%clk 0:01:50]} 12. Rfd1 {[%clk 0:02:08]}  Rd8 {[%clk 0:01:38]} 13. Bc4 {[%clk 0:01:55]}  Na5 {[%clk 0:01:24]} 14. Bf1 {[%clk 0:01:37]}  a6 {[%clk 0:01:17]} 15. e4 {[%clk 0:01:27]}  b5 {[%clk 0:01:13]} 16. a4 {[%clk 0:01:25]}  c4 {[%clk 0:01:05]} 17. axb5 {[%clk 0:01:13]}  axb5 {[%clk 0:01:06]} 18. Nd4 {[%clk 0:01:13]}  Bd7 {[%clk 0:01:05]} 19. N2f3 {[%clk 0:00:55]}  Qb7 {[%clk 0:00:48]} 20. Re1 {[%clk 0:00:35]}  e6 {[%clk 0:00:41]} 21. Be5 {[%clk 0:00:28]}  Nc6 {[%clk 0:00:34]} 22. Rxa8 {[%clk 0:00:28]}  Rxa8 {[%clk 0:00:34]} 23. Nxc6 {[%clk 0:00:23]}  Bxc6 {[%clk 0:00:34]} 24. Nd4 {[%clk 0:00:15]}  Bxe4 {[%clk 0:00:29]} 25. Qc1 {[%clk 0:00:16]}  Kh7 {[%clk 0:00:20]} 26. Qf4 {[%clk 0:00:13]}  Bf5 {[%clk 0:00:20]} 27. g4 {[%clk 0:00:08]}  Nd5 {[%clk 0:00:19]} 28. Qg3 {[%clk 0:00:07]}  Bd3 {[%clk 0:00:14]} 29. Bxd3 {[%clk 0:00:02]}  cxd3 {[%clk 0:00:15]} 30. Bxg7 {[%clk 0:00:02]}  d2 {[%clk 0:00:14]} 31. Rd1 {[%clk 0:00:02]}  Kxg7 {[%clk 0:00:14]} 32. Qe5+ {[%clk 0:00:03]}  Kh7 {[%clk 0:00:14]} 33. Nf3 {[%clk 0:00:01]}  b4 {[%clk 0:00:11]} 34. c4 {[%clk 0:00:01]}  Nb6 {[%clk 0:00:10]} 35. Qf4 {[%clk 0:00:02]}  Rd8 {[%clk 0:00:08]} 36. b3 {[%clk 0:00:01]}  Rd3 {[%clk 0:00:07]} 37. Ne5 {[%clk 0:00:02]}  Rxh3 {[%clk 0:00:05]} 38. f3 {[%clk 0:00:02]}  Kg7 {[%clk 0:00:04]} 39. Rxd2 {[%clk 0:00:03]}  Qa7 {[%clk 0:00:03]} 40. Kg2 {[%clk 0:00:03]}  Rh4 {[%clk 0:00:02]} 41. Rd7 {[%clk 0:00:02]} 1-0


[Site "https://www.chess.com"]

[Event "Titled Tuesday Blitz April 25 Late 2023"]
[White "Roebers, Eline"]
[Black "Andreikin, Dmitry"]
[WhiteFideId "1058401"]
[BlackFideId "4158814"]
[WhiteElo "2356"]
[BlackElo "2736"]
[Result "0-1"]
[Round "08"]
[TimeControl "180+2"]
[Date "2023.04.25"]
[WhiteClock "0:00:02"]
[BlackClock "0:00:35"]

1. e4 {[%clk 0:03:00]}  c5 {[%clk 0:02:56]} 2. Nf3 {[%clk 0:03:00]}  Nc6 {[%clk 0:02:56]} 3. d4 {[%clk 0:03:01]}  cxd4 {[%clk 0:02:56]} 4. Nxd4 {[%clk 0:03:01]}  Qb6 {[%clk 0:02:56]} 5. Nb3 {[%clk 0:03:01]}  e6 {[%clk 0:02:56]} 6. Nc3 {[%clk 0:02:56]}  Nf6 {[%clk 0:02:52]} 7. Bf4 {[%clk 0:02:53]}  Bb4 {[%clk 0:02:52]} 8. Qd3 {[%clk 0:02:30]}  O-O {[%clk 0:02:42]} 9. Be2 {[%clk 0:02:12]}  d5 {[%clk 0:02:40]} 10. exd5 {[%clk 0:02:07]}  Nxd5 {[%clk 0:02:41]} 11. Bd2 {[%clk 0:02:07]}  Rd8 {[%clk 0:02:36]} 12. Qg3 {[%clk 0:01:58]}  Bd6 {[%clk 0:02:23]} 13. Nxd5 {[%clk 0:01:52]}  exd5 {[%clk 0:02:22]} 14. Qf3 {[%clk 0:01:48]}  Ne5 {[%clk 0:02:19]} 15. Qe3 {[%clk 0:01:45]}  d4 {[%clk 0:02:10]} 16. Qxd4 {[%clk 0:01:39]}  Qc7 {[%clk 0:02:07]} 17. O-O-O {[%clk 0:01:28]}  Bf5 {[%clk 0:02:01]} 18. Bc3 {[%clk 0:01:27]}  Nd3+ {[%clk 0:01:56]} 19. Rxd3 {[%clk 0:01:14]}  Bf4+ {[%clk 0:01:52]} 20. Kb1 {[%clk 0:01:13]}  Rxd4 {[%clk 0:01:51]} 21. Rxd4 {[%clk 0:01:13]}  Be5 {[%clk 0:01:28]} 22. Rc4 {[%clk 0:01:11]}  Qe7 {[%clk 0:01:27]} 23. Bb4 {[%clk 0:01:04]}  Qf6 {[%clk 0:01:20]} 24. Ba3 {[%clk 0:00:37]}  Be6 {[%clk 0:01:20]} 25. Re4 {[%clk 0:00:34]}  Bd5 {[%clk 0:01:20]} 26. Re3 {[%clk 0:00:34]}  Bxg2 {[%clk 0:01:17]} 27. Rd1 {[%clk 0:00:31]}  Bxh2 {[%clk 0:01:15]} 28. Bc4 {[%clk 0:00:27]}  b5 {[%clk 0:00:59]} 29. Bxb5 {[%clk 0:00:23]}  h5 {[%clk 0:00:58]} 30. Bc4 {[%clk 0:00:21]}  h4 {[%clk 0:00:55]} 31. Re7 {[%clk 0:00:12]}  h3 {[%clk 0:00:54]} 32. Rdd7 {[%clk 0:00:11]}  Rf8 {[%clk 0:00:52]} 33. Re1 {[%clk 0:00:02]}  Qxf2 {[%clk 0:00:48]} 34. Red1 {[%clk 0:00:01]}  Be4 {[%clk 0:00:39]} 35. Bc5 {[%clk 0:00:01]}  Qxc2+ {[%clk 0:00:35]} 36. Ka1 {[%clk 0:00:02]}  Qxc4 {[%clk 0:00:35]} 0-1


[Site "https://www.chess.com"]

[Event "Titled Tuesday Blitz April 25 Late 2023"]
[White "Silva, Miguel Antonio Neto"]
[Black "Averjanov, Alexey"]
[WhiteFideId "1911929"]
[BlackFideId "14109867"]
[WhiteElo "2223"]
[BlackElo "2399"]
[Result "1/2-1/2"]
[Round "08"]
[TimeControl "180+2"]
[Date "2023.04.25"]
[WhiteClock "0:00:14"]
[BlackClock "0:00:32"]

1. Nf3 {[%clk 0:02:56]}  d5 {[%clk 0:02:59]} 2. b3 {[%clk 0:02:55]}  Nf6 {[%clk 0:02:59]} 3. Bb2 {[%clk 0:02:54]}  e6 {[%clk 0:02:59]} 4. e3 {[%clk 0:02:54]}  Be7 {[%clk 0:02:59]} 5. Be2 {[%clk 0:02:53]}  O-O {[%clk 0:02:59]} 6. O-O {[%clk 0:02:53]}  b6 {[%clk 0:03:00]} 7. d3 {[%clk 0:02:49]}  Bb7 {[%clk 0:03:00]} 8. Ne5 {[%clk 0:02:49]}  c5 {[%clk 0:02:58]} 9. Nd2 {[%clk 0:02:49]}  Nc6 {[%clk 0:02:57]} 10. f4 {[%clk 0:02:48]}  d4 {[%clk 0:02:56]} 11. Nxc6 {[%clk 0:02:27]}  Bxc6 {[%clk 0:02:57]} 12. e4 {[%clk 0:02:28]}  Nd7 {[%clk 0:02:56]} 13. f5 {[%clk 0:02:25]}  exf5 {[%clk 0:02:54]} 14. Rxf5 {[%clk 0:02:24]}  Bd6 {[%clk 0:02:52]} 15. Nc4 {[%clk 0:02:21]}  Qc7 {[%clk 0:02:47]} 16. Nxd6 {[%clk 0:02:19]}  Qxd6 {[%clk 0:02:48]} 17. Bc1 {[%clk 0:02:19]}  Ne5 {[%clk 0:02:45]} 18. Bf4 {[%clk 0:02:15]}  f6 {[%clk 0:02:45]} 19. Bg3 {[%clk 0:02:04]}  Bd7 {[%clk 0:02:41]} 20. Rf2 {[%clk 0:02:00]}  g6 {[%clk 0:02:40]} 21. Qd2 {[%clk 0:01:59]}  Kg7 {[%clk 0:02:39]} 22. Raf1 {[%clk 0:01:58]}  Rf7 {[%clk 0:02:40]} 23. Bxe5 {[%clk 0:01:41]}  Qxe5 {[%clk 0:02:39]} 24. Qf4 {[%clk 0:01:42]}  Raf8 {[%clk 0:02:35]} 25. Bg4 {[%clk 0:01:34]}  Qxf4 {[%clk 0:02:30]} 26. Rxf4 {[%clk 0:01:33]}  Bxg4 {[%clk 0:02:28]} 27. Rxg4 {[%clk 0:01:33]}  f5 {[%clk 0:02:28]} 28. exf5 {[%clk 0:01:33]}  Rxf5 {[%clk 0:02:29]} 29. Rxf5 {[%clk 0:01:32]}  Rxf5 {[%clk 0:02:30]} 30. Re4 {[%clk 0:01:33]}  Kf6 {[%clk 0:02:28]} 31. g3 {[%clk 0:01:33]}  Re5 {[%clk 0:02:26]} 32. Rf4+ {[%clk 0:01:31]}  Rf5 {[%clk 0:02:24]} 33. Re4 {[%clk 0:01:31]}  g5 {[%clk 0:02:23]} 34. Kg2 {[%clk 0:01:29]}  Re5 {[%clk 0:02:21]} 35. Kf3 {[%clk 0:01:29]}  h5 {[%clk 0:02:20]} 36. h3 {[%clk 0:01:27]}  b5 {[%clk 0:02:15]} 37. Rxe5 {[%clk 0:00:48]}  Kxe5 {[%clk 0:02:14]} 38. h4 {[%clk 0:00:49]}  g4+ {[%clk 0:01:45]} 39. Ke2 {[%clk 0:00:46]}  Kd5 {[%clk 0:01:42]} 40. Kd2 {[%clk 0:00:46]}  Kc6 {[%clk 0:01:27]} 41. a3 {[%clk 0:00:46]}  Kb6 {[%clk 0:01:24]} 42. Kc1 {[%clk 0:00:42]}  a6 {[%clk 0:01:17]} 43. Kb2 {[%clk 0:00:40]}  a5 {[%clk 0:01:15]} 44. a4 {[%clk 0:00:34]}  bxa4 {[%clk 0:01:01]} 45. bxa4 {[%clk 0:00:34]}  c4 {[%clk 0:01:02]} 46. dxc4 {[%clk 0:00:23]}  Kc6 {[%clk 0:00:58]} 47. Ka3 {[%clk 0:00:17]}  Kd6 {[%clk 0:00:56]} 48. Ka2 {[%clk 0:00:18]}  Kc5 {[%clk 0:00:55]} 49. Kb3 {[%clk 0:00:17]}  Kc6 {[%clk 0:00:53]} 50. Kb2 {[%clk 0:00:18]}  Kb6 {[%clk 0:00:50]} 51. Ka3 {[%clk 0:00:17]}  Kb7 {[%clk 0:00:45]} 52. Kb3 {[%clk 0:00:15]}  Kc6 {[%clk 0:00:42]} 53. Kb2 {[%clk 0:00:15]}  Kd6 {[%clk 0:00:40]} 54. Ka2 {[%clk 0:00:14]}  Ke6 {[%clk 0:00:35]} 55. Kb2 {[%clk 0:00:13]}  Kd6 {[%clk 0:00:32]} 56. Ka2 {[%clk 0:00:14]} 1/2-1/2


[Site "https://www.chess.com"]